[Event "Late-Titled-Tuesday-Blitz-June-04-2024"]
[Site "Chess.com"]
[Date "2024.06.04"]
[Round "6"]
[White "hansen"]
[Black "The_Sherman_Variation"]
[Result "1-0"]
[WhiteElo "3036"]
[BlackElo "2594"]
[TimeControl "180+1"]
[EndTime "15:06:40 PDT"]
[Termination "hansen won by resignation"]

1. e4 {[%clk 0:03:00.9]} 1... e6 {[%clk 0:02:59.7]} 2. d4 {[%clk 0:02:54.1]}
2... d5 {[%clk 0:02:58.8]} 3. Nc3 {[%clk 0:02:54.8]} 3... Bb4 {[%clk 0:02:56.9]}
4. e5 {[%clk 0:02:53.4]} 4... c5 {[%clk 0:02:56.3]} 5. a3 {[%clk 0:02:54.1]}
5... Bxc3+ {[%clk 0:02:56.9]} 6. bxc3 {[%clk 0:02:55]} 6... Ne7 {[%clk
0:02:57.4]} 7. h4 {[%clk 0:02:55.1]} 7... Qc7 {[%clk 0:02:57.1]} 8. h5 {[%clk
0:02:48]} 8... h6 {[%clk 0:02:55.8]} 9. Nf3 {[%clk 0:02:47]} 9... Qa5 {[%clk
0:02:55.1]} 10. Bd2 {[%clk 0:02:46.6]} 10... Nbc6 {[%clk 0:02:54.5]} 11. Bd3
{[%clk 0:02:39.7]} 11... c4 {[%clk 0:02:46.4]} 12. Be2 {[%clk 0:02:39.8]} 12...
Qa4 {[%clk 0:02:47]} 13. Nh2 {[%clk 0:02:39.5]} 13... Bd7 {[%clk 0:02:44.8]} 14.
Ng4 {[%clk 0:02:40.1]} 14... O-O-O {[%clk 0:02:43.6]} 15. O-O {[%clk 0:02:40.6]}
15... Rdg8 {[%clk 0:02:41.8]} 16. Bf4 {[%clk 0:02:35.8]} 16... Nf5 {[%clk
0:02:41.8]} 17. Qd2 {[%clk 0:02:35.2]} 17... Nce7 {[%clk 0:02:31.3]} 18. Rfb1
{[%clk 0:02:33.4]} 18... g5 {[%clk 0:02:28.8]} 19. Bh2 {[%clk 0:02:29]} 19...
Rd8 {[%clk 0:02:22.5]} 20. Nf6 {[%clk 0:02:26.6]} 20... Ng8 {[%clk 0:02:20.1]}
21. Rb4 {[%clk 0:02:22.8]} 21... Qa6 {[%clk 0:02:16.5]} 22. Rab1 {[%clk
0:02:21.4]} 22... Bc6 {[%clk 0:02:15.1]} 23. a4 {[%clk 0:02:20.1]} 23... Ng7
{[%clk 0:02:10.8]} 24. Qe3 {[%clk 0:02:17.7]} 24... Ne8 {[%clk 0:02:08.9]} 25.
Qf3 {[%clk 0:02:06.9]} 25... Ngxf6 {[%clk 0:01:51.5]} 26. exf6 {[%clk
0:02:06.9]} 26... Nd6 {[%clk 0:01:44.8]} 27. Qg3 {[%clk 0:02:03.3]} 27... b6
{[%clk 0:01:39.1]} 28. Qe5 {[%clk 0:02:00.5]} 28... Qb7 {[%clk 0:01:38.9]} 29.
Bg4 {[%clk 0:01:56.3]} 29... Kb8 {[%clk 0:01:34.2]} 30. f3 {[%clk 0:01:47.5]}
30... Ka8 {[%clk 0:01:33.3]} 31. Bg3 {[%clk 0:01:44.7]} 31... Rhg8 {[%clk
0:01:19.4]} 32. Qe1 {[%clk 0:01:39.3]} 32... Nf5 {[%clk 0:01:13.6]} 33. Be5
{[%clk 0:01:37.2]} 33... Nd6 {[%clk 0:01:11.8]} 34. Ra1 {[%clk 0:01:34.3]} 34...
Rd7 {[%clk 0:00:56.1]} 35. a5 {[%clk 0:01:33.5]} 35... b5 {[%clk 0:00:56.5]} 36.
a6 {[%clk 0:01:34.2]} 36... Qb6 {[%clk 0:00:56.5]} 37. Qb1 {[%clk 0:01:34.3]}
37... Ne8 {[%clk 0:00:52.3]} 38. Qa2 {[%clk 0:01:33.3]} 38... Nd6 {[%clk
0:00:50.4]} 39. Qa3 {[%clk 0:01:33.4]} 39... Nf5 {[%clk 0:00:49.9]} 40. Kf2
{[%clk 0:01:27.6]} 40... Re8 {[%clk 0:00:40.2]} 41. Rb2 {[%clk 0:01:27.2]} 41...
Red8 {[%clk 0:00:36.5]} 42. Bh3 {[%clk 0:01:23.2]} 42... Nd6 {[%clk 0:00:32.9]}
43. Rab1 {[%clk 0:01:23]} 43... Ne8 {[%clk 0:00:27.1]} 44. Qf8 {[%clk
0:01:13.7]} 44... Nxf6 {[%clk 0:00:24.2]} 45. Qxh6 {[%clk 0:01:11.7]} 45... Ng8
{[%clk 0:00:24.7]} 46. Qxg5 {[%clk 0:01:10.6]} 46... f6 {[%clk 0:00:17.5]} 47.
Bxf6 {[%clk 0:01:10.3]} 47... Nxf6 {[%clk 0:00:18.4]} 48. Qxf6 {[%clk
0:01:10.6]} 48... Re8 {[%clk 0:00:19.1]} 49. Qe5 {[%clk 0:01:08.7]} 49... Qa5
{[%clk 0:00:13.9]} 50. Qe3 {[%clk 0:00:51]} 50... Rde7 {[%clk 0:00:13.8]} 51. f4
{[%clk 0:00:49.5]} 51... Rh8 {[%clk 0:00:12.4]} 52. Bg4 {[%clk 0:00:49.2]} 52...
Qd8 {[%clk 0:00:11.6]} 53. Rh1 {[%clk 0:00:47.8]} 53... Qg8 {[%clk 0:00:11.4]}
54. Bf3 {[%clk 0:00:46.7]} 54... Qg7 {[%clk 0:00:10.5]} 55. Qe5 {[%clk
0:00:46.4]} 55... Qh6 {[%clk 0:00:10.7]} 56. g4 {[%clk 0:00:46.7]} 56... Rf8
{[%clk 0:00:09.2]} 57. g5 {[%clk 0:00:46.5]} 57... Qh7 {[%clk 0:00:07.9]} 58. g6
{[%clk 0:00:41.5]} 58... Qg8 {[%clk 0:00:08.4]} 59. Bg4 {[%clk 0:00:35]} 59...
Bd7 {[%clk 0:00:05]} 60. Rbb1 {[%clk 0:00:34.8]} 60... Ree8 {[%clk 0:00:04.9]}
61. Rbe1 {[%clk 0:00:34.6]} 61... Bc8 {[%clk 0:00:04.5]} 62. Kg3 {[%clk
0:00:34.1]} 62... Re7 {[%clk 0:00:03.7]} 63. Qg5 {[%clk 0:00:27.3]} 63... Qg7
{[%clk 0:00:04]} 64. h6 {[%clk 0:00:26.9]} 64... Qg8 {[%clk 0:00:04.6]} 65. g7
{[%clk 0:00:27]} 65... Rff7 {[%clk 0:00:02.2]} 66. h7 {[%clk 0:00:27.3]} 1-0

[Event "Late-Titled-Tuesday-Blitz-June-04-2024"]
[Site "Chess.com"]
[Date "2024.06.04"]
[Round "6"]
[White "chess94cu"]
[Black "Kielinkei"]
[Result "1-0"]
[WhiteElo "2630"]
[BlackElo "2449"]
[TimeControl "180+1"]
[EndTime "15:06:42 PDT"]
[Termination "chess94cu won by resignation"]

1. e4 {[%clk 0:03:00.9]} 1... c5 {[%clk 0:03:00.1]} 2. Nf3 {[%clk 0:03:00.2]}
2... e6 {[%clk 0:03:00.7]} 3. c3 {[%clk 0:02:59.7]} 3... d5 {[%clk 0:03:00.4]}
4. exd5 {[%clk 0:03:00]} 4... Qxd5 {[%clk 0:03:01.3]} 5. d4 {[%clk 0:03:00.5]}
5... Nf6 {[%clk 0:03:02.1]} 6. Be2 {[%clk 0:02:59.1]} 6... Be7 {[%clk
0:02:59.4]} 7. O-O {[%clk 0:02:59]} 7... cxd4 {[%clk 0:02:58.6]} 8. cxd4 {[%clk
0:02:59.2]} 8... O-O {[%clk 0:02:57.8]} 9. Nc3 {[%clk 0:02:59.9]} 9... Qd8
{[%clk 0:02:58.1]} 10. Bg5 {[%clk 0:02:58.8]} 10... Nc6 {[%clk 0:02:55.2]} 11.
Rc1 {[%clk 0:02:56.7]} 11... Nb4 {[%clk 0:02:49.2]} 12. Ne5 {[%clk 0:02:39.8]}
12... Nbd5 {[%clk 0:02:39.5]} 13. Bf3 {[%clk 0:02:32.9]} 13... h6 {[%clk
0:02:39]} 14. Bh4 {[%clk 0:02:14.5]} 14... Bd7 {[%clk 0:02:36.8]} 15. Nxd5
{[%clk 0:01:39.2]} 15... Nxd5 {[%clk 0:02:35.4]} 16. Bxe7 {[%clk 0:01:39.7]}
16... Nxe7 {[%clk 0:02:32.8]} 17. d5 {[%clk 0:01:24.3]} 17... Nxd5 {[%clk
0:02:23.8]} 18. Bxd5 {[%clk 0:01:24.1]} 18... exd5 {[%clk 0:02:23.5]} 19. Qxd5
{[%clk 0:01:24.5]} 19... Be6 {[%clk 0:02:09.8]} 20. Qxb7 {[%clk 0:01:23.5]}
20... Rb8 {[%clk 0:02:02.1]} 21. Qxa7 {[%clk 0:01:23.3]} 21... Rxb2 {[%clk
0:02:02]} 22. a4 {[%clk 0:01:21.1]} 22... Qa8 {[%clk 0:01:51.9]} 23. Rc7 {[%clk
0:01:12.7]} 23... Ra2 {[%clk 0:01:39.9]} 24. Qc5 {[%clk 0:00:56.5]} 24... Rxa4
{[%clk 0:01:33.5]} 25. Nc6 {[%clk 0:00:57]} 25... Rc4 {[%clk 0:01:22]} 26. Qd6
{[%clk 0:00:56.4]} 26... Rg4 {[%clk 0:00:52.3]} 27. f3 {[%clk 0:00:51.2]} 27...
Ra4 {[%clk 0:00:47.7]} 28. h3 {[%clk 0:00:37.6]} 28... Ra1 {[%clk 0:00:47]} 29.
Rxa1 {[%clk 0:00:34.7]} 29... Qxa1+ {[%clk 0:00:47.9]} 30. Kh2 {[%clk
0:00:35.3]} 30... Re8 {[%clk 0:00:28.5]} 31. Nd4 {[%clk 0:00:34.1]} 31... Qa2
{[%clk 0:00:16.5]} 32. Rc5 {[%clk 0:00:15.2]} 32... Qa3 {[%clk 0:00:13.1]} 33.
Nb5 {[%clk 0:00:07.9]} 33... Qa2 {[%clk 0:00:10.4]} 34. Nc7 {[%clk 0:00:08.4]}
34... Rf8 {[%clk 0:00:09.4]} 35. Re5 {[%clk 0:00:08.6]} 35... Bb3 {[%clk
0:00:05.6]} 36. Nb5 {[%clk 0:00:07.9]} 36... Qc2 {[%clk 0:00:04.8]} 37. Nd4
{[%clk 0:00:08.2]} 37... Qb1 {[%clk 0:00:04.5]} 38. Nf5 {[%clk 0:00:08.6]} 38...
Be6 {[%clk 0:00:03.8]} 39. Ne7+ {[%clk 0:00:09.5]} 39... Kh7 {[%clk 0:00:03]}
40. Ng6 {[%clk 0:00:09.3]} 40... Ra8 {[%clk 0:00:01.8]} 41. Nf4 {[%clk 0:00:09]}
41... Re8 {[%clk 0:00:01.2]} 42. Nxe6 {[%clk 0:00:09.3]} 42... Rxe6 {[%clk
0:00:02.1]} 43. Rxe6 {[%clk 0:00:09.9]} 43... fxe6 {[%clk 0:00:03]} 44. Qxe6
{[%clk 0:00:10.8]} 44... Qc2 {[%clk 0:00:03.3]} 45. Qe4+ {[%clk 0:00:11.4]}
45... Qxe4 {[%clk 0:00:04]} 46. fxe4 {[%clk 0:00:12.3]} 46... Kg6 {[%clk
0:00:04.9]} 47. Kg3 {[%clk 0:00:13.1]} 47... Kf6 {[%clk 0:00:05.6]} 48. Kf4
{[%clk 0:00:13.9]} 48... g5+ {[%clk 0:00:05.9]} 49. Kg4 {[%clk 0:00:11.4]} 49...
Kg6 {[%clk 0:00:06.3]} 50. g3 {[%clk 0:00:10]} 50... h5+ {[%clk 0:00:05.9]} 51.
Kf3 {[%clk 0:00:10.7]} 51... Kf6 {[%clk 0:00:06.5]} 52. Ke3 {[%clk 0:00:11.1]}
52... Ke5 {[%clk 0:00:06.5]} 53. h4 {[%clk 0:00:09.4]} 53... g4 {[%clk
0:00:02.8]} 54. Kd3 {[%clk 0:00:09.5]} 54... Ke6 {[%clk 0:00:03.3]} 55. Kd4
{[%clk 0:00:10.2]} 1-0

[Event "Late-Titled-Tuesday-Blitz-June-04-2024"]
[Site "Chess.com"]
[Date "2024.06.04"]
[Round "6"]
[White "penguingm1"]
[Black "BardArtem"]
[Result "0-1"]
[WhiteElo "2920"]
[BlackElo "2742"]
[TimeControl "180+1"]
[EndTime "15:06:43 PDT"]
[Termination "BardArtem won by resignation"]

1. d4 {[%clk 0:03:00.9]} 1... Nf6 {[%clk 0:02:56.8]} 2. c4 {[%clk 0:02:59.6]}
2... b6 {[%clk 0:02:57.2]} 3. Nc3 {[%clk 0:02:59]} 3... Bb7 {[%clk 0:02:57.6]}
4. Qc2 {[%clk 0:02:57.7]} 4... d5 {[%clk 0:02:57.2]} 5. cxd5 {[%clk 0:02:58.6]}
5... Nxd5 {[%clk 0:02:58.1]} 6. e4 {[%clk 0:02:59.5]} 6... Nxc3 {[%clk
0:02:58.4]} 7. bxc3 {[%clk 0:03:00.4]} 7... g6 {[%clk 0:02:59]} 8. Bb5+ {[%clk
0:02:59.8]} 8... Nd7 {[%clk 0:02:58]} 9. h4 {[%clk 0:02:55.2]} 9... h6 {[%clk
0:02:50.9]} 10. h5 {[%clk 0:02:52.8]} 10... g5 {[%clk 0:02:51.1]} 11. f4 {[%clk
0:02:53.6]} 11... gxf4 {[%clk 0:02:46.8]} 12. Bxf4 {[%clk 0:02:52.7]} 12... a6
{[%clk 0:02:37.4]} 13. Bd3 {[%clk 0:02:35.3]} 13... e5 {[%clk 0:02:33.9]} 14.
Be3 {[%clk 0:02:35.4]} 14... exd4 {[%clk 0:02:19.2]} 15. Bxd4 {[%clk 0:02:31.1]}
15... Rg8 {[%clk 0:02:18.1]} 16. Nf3 {[%clk 0:02:27.7]} 16... Qe7 {[%clk
0:02:14.8]} 17. Nh4 {[%clk 0:02:09.7]} 17... Nc5 {[%clk 0:01:17.1]} 18. Bxc5
{[%clk 0:00:41.9]} 18... Qxc5 {[%clk 0:01:18]} 19. Nf5 {[%clk 0:00:39.6]} 19...
O-O-O {[%clk 0:01:15.3]} 20. O-O-O {[%clk 0:00:38.1]} 20... Bd6 {[%clk 0:01:00]}
21. Kb2 {[%clk 0:00:29.5]} 21... Be5 {[%clk 0:00:57.2]} 22. a3 {[%clk
0:00:25.3]} 22... Kb8 {[%clk 0:00:21.7]} 23. g3 {[%clk 0:00:21.8]} 23... b5
{[%clk 0:00:17.6]} 24. Rhg1 {[%clk 0:00:17.2]} 24... Rd7 {[%clk 0:00:12]} 25.
Rg2 {[%clk 0:00:11.4]} 25... Rgd8 {[%clk 0:00:11.7]} 26. Rgd2 {[%clk 0:00:11.5]}
26... b4 {[%clk 0:00:06.2]} 27. axb4 {[%clk 0:00:02.2]} 27... Qxb4+ {[%clk
0:00:07.1]} 28. Kc1 {[%clk 0:00:02.4]} 28... Bxc3 {[%clk 0:00:07.1]} 29. Re2
{[%clk 0:00:01.7]} 29... Qa3+ {[%clk 0:00:06.9]} 30. Kb1 {[%clk 0:00:02.4]}
30... Rd4 {[%clk 0:00:05.8]} 31. Nxd4 {[%clk 0:00:01.7]} 31... Rxd4 {[%clk
0:00:06.7]} 32. Bc4 {[%clk 0:00:01]} 32... Rxc4 {[%clk 0:00:06.5]} 33. Rd8+
{[%clk 0:00:01]} 33... Ka7 {[%clk 0:00:06.7]} 34. Qc1 {[%clk 0:00:01.2]} 34...
Qb3+ {[%clk 0:00:04.3]} 35. Rb2 {[%clk 0:00:01.2]} 35... Bxb2 {[%clk 0:00:04.7]}
36. Qxb2 {[%clk 0:00:01.8]} 36... Qxb2+ {[%clk 0:00:02.8]} 37. Kxb2 {[%clk
0:00:02.3]} 37... Rxe4 {[%clk 0:00:03.7]} 38. Rd7 {[%clk 0:00:02.8]} 38... f5
{[%clk 0:00:02.1]} 39. Rh7 {[%clk 0:00:02.6]} 39... Re6 {[%clk 0:00:02.1]} 40.
Rg7 {[%clk 0:00:02.8]} 40... Be4 {[%clk 0:00:02.5]} 41. Rxc7+ {[%clk 0:00:03]}
41... Kb6 {[%clk 0:00:03.2]} 42. Rg7 {[%clk 0:00:03.7]} 42... Kc6 {[%clk
0:00:03.1]} 43. Kc3 {[%clk 0:00:04.3]} 43... Kd5 {[%clk 0:00:03.4]} 44. Kd2
{[%clk 0:00:05]} 44... Ke5 {[%clk 0:00:03.6]} 45. Ke3 {[%clk 0:00:05.7]} 45...
Rb6 {[%clk 0:00:03.6]} 46. Re7+ {[%clk 0:00:06]} 46... Kf6 {[%clk 0:00:04.1]}
47. Rh7 {[%clk 0:00:05.3]} 47... Rb3+ {[%clk 0:00:04.4]} 48. Kd4 {[%clk
0:00:06]} 48... Rd3+ {[%clk 0:00:03.6]} 49. Kc4 {[%clk 0:00:06.5]} 49... Kg5
{[%clk 0:00:04]} 50. Rg7+ {[%clk 0:00:04.6]} 50... Kxh5 {[%clk 0:00:04.4]} 51.
Kb4 {[%clk 0:00:05.3]} 51... Rd6 {[%clk 0:00:03.1]} 52. Kc5 {[%clk 0:00:03.7]}
52... Rg6 {[%clk 0:00:03.4]} 53. Rd7 {[%clk 0:00:03.1]} 53... Rxg3 {[%clk
0:00:03.6]} 54. Rd1 {[%clk 0:00:03.7]} 54... Kg4 {[%clk 0:00:04]} 55. Rd6 {[%clk
0:00:03.2]} 55... h5 {[%clk 0:00:04.4]} 56. Rh6 {[%clk 0:00:04]} 56... h4 {[%clk
0:00:04.7]} 57. Kd4 {[%clk 0:00:04.9]} 57... h3 {[%clk 0:00:04.9]} 58. Rg6+
{[%clk 0:00:05.5]} 58... Kf3 {[%clk 0:00:05.4]} 59. Rh6 {[%clk 0:00:04.7]} 59...
Kg2 {[%clk 0:00:05]} 0-1

[Event "Late-Titled-Tuesday-Blitz-June-04-2024"]
[Site "Chess.com"]
[Date "2024.06.04"]
[Round "6"]
[White "Rodalquilar"]
[Black "MaiqMaster"]
[Result "1/2-1/2"]
[WhiteElo "2784"]
[BlackElo "2460"]
[TimeControl "180+1"]
[EndTime "15:06:49 PDT"]
[Termination "Game drawn - insufficient material"]

1. d4 {[%clk 0:03:00.9]} 1... d5 {[%clk 0:02:59.8]} 2. Nf3 {[%clk 0:03:01]} 2...
Nf6 {[%clk 0:02:59.7]} 3. Bf4 {[%clk 0:03:01]} 3... c5 {[%clk 0:02:59.3]} 4. e3
{[%clk 0:03:01.3]} 4... Nc6 {[%clk 0:02:59.2]} 5. c3 {[%clk 0:03:01.8]} 5... Qb6
{[%clk 0:02:58.9]} 6. Qc2 {[%clk 0:03:02]} 6... g6 {[%clk 0:02:58.4]} 7. h3
{[%clk 0:03:01.7]} 7... Bg7 {[%clk 0:02:58]} 8. Be2 {[%clk 0:03:01.2]} 8... O-O
{[%clk 0:02:58.1]} 9. Nbd2 {[%clk 0:03:01.6]} 9... Bf5 {[%clk 0:02:50.7]} 10.
dxc5 {[%clk 0:03:01.7]} 10... Qxc5 {[%clk 0:02:51.6]} 11. Qb3 {[%clk 0:03:02]}
11... Na5 {[%clk 0:02:44]} 12. Qb5 {[%clk 0:02:53.3]} 12... Qxb5 {[%clk
0:02:43.8]} 13. Bxb5 {[%clk 0:02:53.6]} 13... a6 {[%clk 0:02:44.4]} 14. Be2
{[%clk 0:02:52.9]} 14... b5 {[%clk 0:02:44.4]} 15. O-O {[%clk 0:02:43.9]} 15...
Nc4 {[%clk 0:02:44.1]} 16. Nxc4 {[%clk 0:02:32.7]} 16... dxc4 {[%clk 0:02:45]}
17. Nd4 {[%clk 0:02:21.4]} 17... Bd7 {[%clk 0:02:37.5]} 18. Be5 {[%clk
0:02:20.1]} 18... Ne4 {[%clk 0:02:29.5]} 19. Bxg7 {[%clk 0:02:19.7]} 19... Kxg7
{[%clk 0:02:29.6]} 20. Bf3 {[%clk 0:02:20]} 20... f5 {[%clk 0:02:21.7]} 21. Bxe4
{[%clk 0:02:16.8]} 21... fxe4 {[%clk 0:02:22.6]} 22. Rfd1 {[%clk 0:02:15.8]}
22... Rad8 {[%clk 0:02:19.6]} 23. Rd2 {[%clk 0:02:12.2]} 23... e5 {[%clk
0:02:15.9]} 24. Nc2 {[%clk 0:01:59.8]} 24... Bf5 {[%clk 0:02:08.3]} 25. Rad1
{[%clk 0:01:53.6]} 25... Rd3 {[%clk 0:02:06.5]} 26. Nb4 {[%clk 0:01:53.9]} 26...
a5 {[%clk 0:02:06.4]} 27. Nc6 {[%clk 0:01:20.8]} 27... Kf6 {[%clk 0:01:55.8]}
28. Nxa5 {[%clk 0:01:19.4]} 28... Rfd8 {[%clk 0:01:45.2]} 29. Rxd3 {[%clk
0:01:16.9]} 29... Rxd3 {[%clk 0:01:45.2]} 30. Rb1 {[%clk 0:01:07.4]} 30... Bd7
{[%clk 0:01:40.9]} 31. a4 {[%clk 0:00:53.1]} 31... Ke6 {[%clk 0:01:14.4]} 32.
axb5 {[%clk 0:00:44.6]} 32... Bxb5 {[%clk 0:01:15.3]} 33. b3 {[%clk 0:00:19.7]}
33... Rxc3 {[%clk 0:01:14.2]} 34. bxc4 {[%clk 0:00:19.7]} 34... Bxc4 {[%clk
0:01:15.1]} 35. Rb7 {[%clk 0:00:15]} 35... Rc1+ {[%clk 0:01:08.9]} 36. Kh2
{[%clk 0:00:15]} 36... Bd5 {[%clk 0:01:03.4]} 37. Rxh7 {[%clk 0:00:12.1]} 37...
Ra1 {[%clk 0:01:03.4]} 38. Nb7 {[%clk 0:00:12.6]} 38... Rc1 {[%clk 0:00:49]} 39.
Nd8+ {[%clk 0:00:12.7]} 39... Kf6 {[%clk 0:00:49]} 40. Rd7 {[%clk 0:00:12.6]}
40... Bb3 {[%clk 0:00:40.8]} 41. h4 {[%clk 0:00:05.6]} 41... Rc5 {[%clk
0:00:23.4]} 42. g4 {[%clk 0:00:05.7]} 42... Rd5 {[%clk 0:00:22.8]} 43. g5+
{[%clk 0:00:05.6]} 43... Kf5 {[%clk 0:00:22.6]} 44. Rf7+ {[%clk 0:00:02.6]}
44... Kg4 {[%clk 0:00:22.1]} 45. Ne6 {[%clk 0:00:03.1]} 45... Rd2 {[%clk
0:00:18.5]} 46. Kg2 {[%clk 0:00:01.8]} 46... Bd1 {[%clk 0:00:18.8]} 47. Rf6
{[%clk 0:00:01.9]} 47... Bf3+ {[%clk 0:00:18.8]} 48. Kh2 {[%clk 0:00:01.7]}
48... Rd1 {[%clk 0:00:18.2]} 49. Rxf3 {[%clk 0:00:02.3]} 49... exf3 {[%clk
0:00:19.1]} 50. Nf8 {[%clk 0:00:01.3]} 50... Rf1 {[%clk 0:00:13.7]} 51. Nxg6
{[%clk 0:00:01.2]} 51... Rxf2+ {[%clk 0:00:14.3]} 52. Kh1 {[%clk 0:00:01.9]}
52... e4 {[%clk 0:00:09.3]} 53. h5 {[%clk 0:00:02]} 53... Kxh5 {[%clk 0:00:09]}
54. Nf4+ {[%clk 0:00:02.3]} 54... Kg4 {[%clk 0:00:07.5]} 55. g6 {[%clk
0:00:02.8]} 55... Ra2 {[%clk 0:00:07.3]} 56. g7 {[%clk 0:00:02.6]} 56... Ra8
{[%clk 0:00:08]} 57. Nd5 {[%clk 0:00:03.1]} 57... Kf5 {[%clk 0:00:07]} 58. g8=Q
{[%clk 0:00:02.6]} 58... Rxg8 {[%clk 0:00:06.3]} 59. Ne7+ {[%clk 0:00:03.5]}
59... Kg4 {[%clk 0:00:06.6]} 60. Nxg8 {[%clk 0:00:04.2]} 60... f2 {[%clk
0:00:07.5]} 61. Kg2 {[%clk 0:00:04.5]} 61... f1=Q+ {[%clk 0:00:08.3]} 62. Kxf1
{[%clk 0:00:04.9]} 62... Kf3 {[%clk 0:00:09.2]} 63. Nf6 {[%clk 0:00:05]} 63...
Kxe3 {[%clk 0:00:10.1]} 64. Nxe4 {[%clk 0:00:05.3]} 1/2-1/2

[Event "Late-Titled-Tuesday-Blitz-June-04-2024"]
[Site "Chess.com"]
[Date "2024.06.04"]
[Round "6"]
[White "Alina_Gumerovna"]
[Black "nitpicker"]
[Result "0-1"]
[WhiteElo "2120"]
[BlackElo "2318"]
[TimeControl "180+1"]
[EndTime "15:06:57 PDT"]
[Termination "nitpicker won on time"]

1. e4 {[%clk 0:02:59.8]} 1... c5 {[%clk 0:02:59.4]} 2. Nf3 {[%clk 0:03:00.3]}
2... Nc6 {[%clk 0:02:59.5]} 3. d4 {[%clk 0:03:00.9]} 3... cxd4 {[%clk
0:02:59.4]} 4. Nxd4 {[%clk 0:03:01.8]} 4... Nf6 {[%clk 0:02:59.5]} 5. Nc3 {[%clk
0:03:01]} 5... d6 {[%clk 0:03:00]} 6. f3 {[%clk 0:02:59.6]} 6... Qb6 {[%clk
0:02:54.8]} 7. Nxc6 {[%clk 0:02:54.7]} 7... bxc6 {[%clk 0:02:54.3]} 8. Qd3
{[%clk 0:02:52.5]} 8... g6 {[%clk 0:02:51.8]} 9. Qe3 {[%clk 0:02:48.8]} 9... Bg7
{[%clk 0:02:46.9]} 10. Be2 {[%clk 0:02:48.7]} 10... O-O {[%clk 0:02:44.3]} 11.
O-O {[%clk 0:02:47.7]} 11... Nd7 {[%clk 0:02:25.4]} 12. Qxb6 {[%clk 0:02:45.3]}
12... axb6 {[%clk 0:02:24.5]} 13. Bd2 {[%clk 0:02:44.8]} 13... b5 {[%clk
0:02:23.5]} 14. a3 {[%clk 0:02:44.6]} 14... Nc5 {[%clk 0:02:06.4]} 15. Kf2
{[%clk 0:02:43.6]} 15... f5 {[%clk 0:02:03.6]} 16. exf5 {[%clk 0:02:41.5]} 16...
Bxf5 {[%clk 0:02:03.1]} 17. Rac1 {[%clk 0:02:41.5]} 17... d5 {[%clk 0:01:52.2]}
18. Kg1 {[%clk 0:02:41.2]} 18... e5 {[%clk 0:01:49.5]} 19. g4 {[%clk 0:02:39.4]}
19... Be6 {[%clk 0:01:48.3]} 20. Bd3 {[%clk 0:02:24.5]} 20... Nxd3 {[%clk
0:01:41.3]} 21. cxd3 {[%clk 0:02:24.9]} 21... Bd7 {[%clk 0:01:11.3]} 22. Kg2
{[%clk 0:02:19.7]} 22... Rf7 {[%clk 0:01:06.8]} 23. Be1 {[%clk 0:01:57.6]} 23...
Raf8 {[%clk 0:01:04.4]} 24. Bg3 {[%clk 0:01:56]} 24... h5 {[%clk 0:00:56.4]} 25.
h3 {[%clk 0:01:55.1]} 25... Bh6 {[%clk 0:00:51.5]} 26. Rce1 {[%clk 0:01:54.5]}
26... Bf4 {[%clk 0:00:49.9]} 27. Bxf4 {[%clk 0:01:46.8]} 27... exf4 {[%clk
0:00:50.1]} 28. Re5 {[%clk 0:01:47.2]} 28... hxg4 {[%clk 0:00:48]} 29. hxg4
{[%clk 0:01:44.8]} 29... Rb8 {[%clk 0:00:47.7]} 30. Na2 {[%clk 0:01:24.8]} 30...
Re8 {[%clk 0:00:46.7]} 31. Rfe1 {[%clk 0:01:23.7]} 31... Rxe5 {[%clk 0:00:45.3]}
32. Rxe5 {[%clk 0:01:24.6]} 32... Kf8 {[%clk 0:00:42.8]} 33. Nb4 {[%clk
0:01:03.6]} 33... Re7 {[%clk 0:00:41.7]} 34. Rxe7 {[%clk 0:00:55.4]} 34... Kxe7
{[%clk 0:00:42.6]} 35. d4 {[%clk 0:00:55.7]} 35... Kd6 {[%clk 0:00:41.1]} 36.
Nd3 {[%clk 0:00:27.3]} 36... g5 {[%clk 0:00:38.4]} 37. Kf2 {[%clk 0:00:27.5]}
37... Be8 {[%clk 0:00:36.1]} 38. Ke2 {[%clk 0:00:18.8]} 38... Bg6 {[%clk
0:00:32.7]} 39. Nc5 {[%clk 0:00:18.1]} 39... Bh7 {[%clk 0:00:29.2]} 40. Kd2
{[%clk 0:00:07.4]} 40... Bg6 {[%clk 0:00:29]} 41. Nb7+ {[%clk 0:00:07.1]} 41...
Kc7 {[%clk 0:00:28.2]} 42. Nc5 {[%clk 0:00:05.5]} 42... Kd6 {[%clk 0:00:28.8]}
43. Nb3 {[%clk 0:00:05.1]} 43... Bh7 {[%clk 0:00:27.7]} 44. Na5 {[%clk
0:00:05.4]} 44... Bg6 {[%clk 0:00:26.7]} 45. b3 {[%clk 0:00:03.5]} 45... Bh7
{[%clk 0:00:23.4]} 46. a4 {[%clk 0:00:03.5]} 46... bxa4 {[%clk 0:00:22.4]} 47.
bxa4 {[%clk 0:00:04.4]} 47... Kc7 {[%clk 0:00:22.5]} 48. Nb3 {[%clk 0:00:03.2]}
48... Kb6 {[%clk 0:00:21.8]} 49. Kc3 {[%clk 0:00:02]} 49... Bg6 {[%clk
0:00:19.1]} 50. Nc5 {[%clk 0:00:02.9]} 50... Bf7 {[%clk 0:00:14.2]} 51. Kb4
{[%clk 0:00:03]} 51... Bg8 {[%clk 0:00:12.1]} 52. Nd7+ {[%clk 0:00:02.8]} 52...
Kc7 {[%clk 0:00:11]} 53. Nf6 {[%clk 0:00:03.7]} 53... Bf7 {[%clk 0:00:10]} 54.
Kc5 {[%clk 0:00:03.9]} 54... Bg6 {[%clk 0:00:08.8]} 55. Ng8 {[%clk 0:00:03.5]}
55... Bd3 {[%clk 0:00:08.6]} 56. Nh6 {[%clk 0:00:02.7]} 56... Be2 {[%clk
0:00:08.4]} 57. Nf7 {[%clk 0:00:02.9]} 57... Bxf3 {[%clk 0:00:08.5]} 58. Nxg5
{[%clk 0:00:03.6]} 58... Bxg4 {[%clk 0:00:09.1]} 59. a5 {[%clk 0:00:01.7]} 59...
f3 {[%clk 0:00:09.3]} 60. a6 {[%clk 0:00:02.2]} 60... f2 {[%clk 0:00:08.9]} 61.
Nf7 {[%clk 0:00:01.6]} 61... f1=Q {[%clk 0:00:08.1]} 62. a7 {[%clk 0:00:01.1]}
62... Kb7 {[%clk 0:00:08.3]} 0-1